Cogmind - Beta 13 @@@ ROGUE MODE // 2024.04.01 @ 02:40:06 Player: Olafz Result: Destroyed by S-10 Pest with Light Assault Rifle Performance ------------- Evolutions (1) 500 Regions Visited (6) 1200 Robots Destroyed (10) 50 Value Destroyed (147) 147 Prototype IDs (2) 40 Alien Tech Used (0) 0 Bonus (500) 500 TOTAL SCORE: 2437 Bonus ------- Pacifist 200 Aligned with FarCom 300 Cogmind --------- Core Integrity 0/400 Matter 295/300 Energy 95/100 System Corruption 0% Temperature Cool (0) Movement Core (50) Location -8/Mines Parts ------- > --- POWER (2) -------- (None) > --- PROPULSION (3) --- (None) > --- UTILITY (2) ------ (None) > --- WEAPON (2) ------- Heavy Mace > --- INVENTORY (5) ---- Reinforced Deuterium Engine Reinforced Deuterium Engine Light Fission Core Huge Storage Unit Medium Laser Peak State ------------ > --- POWER ------------ Light Ion Engine > --- PROPULSION ------- Aluminum Leg Aluminum Leg > --- UTILITY ---------- Trap Scanner Skeleton Box > --- WEAPON ----------- YOLO Cannon > --- INVENTORY -------- Reinforced Deuterium Engine Reinforced Deuterium Engine Light Fission Core Huge Storage Unit Medium Laser [Rating: 33] Favorites ----------- Power Light Ion Engine Engine Light Ion Engine Propulsion Aluminum Leg Leg Aluminum Leg Wheel Wheel Utility Cooling System Device Cooling System Storage Large Battery Weapon Medium Laser Energy Gun Medium Laser Energy Cannon YOLO Cannon Impact Weapon Heavy Mace Special Melee Weapon Datajack Build | -11 -10 -10 -9 -9 -9 -8 ------- Run | Yrd Mat Min Mat Min Exi Min Slots Evolved 2 | . . . 2 . . . Power 1 | . . . 1 . . . Propulsion 1 | . . . 1 . . . Utility . | . . . . . . . Weapon . | . . . . . . . Parts Attached 15 | 5 2 . 2 . 3 3 Power 1 | 1 . . . . . . Engine 1 | 1 . . . . . . Core . | . . . . . . . Reactor . | . . . . . . . Propulsion 3 | 2 . . . . . 1 Treads . | . . . . . . . Leg 2 | 2 . . . . . . Wheel 1 | . . . . . . 1 Hover . | . . . . . . . Flight . | . . . . . . . Utility 6 | . 1 . 2 . 2 1 Device 4 | . . . 2 . 1 1 Storage 2 | . 1 . . . 1 . Processor . | . . . . . . . Hackware . | . . . . . . . Protection . | . . . . . . . Artifact . | . . . . . . . Weapon 5 | 2 1 . . . 1 1 Energy Gun 2 | 2 . . . . . . Energy Cannon 1 | . . . . . 1 . Ballistic Gun . | . . . . . . . Ballistic Cannon . | . . . . . . . Launcher . | . . . . . . . Special Weapon . | . . . . . . . Impact Weapon 1 | . . . . . . 1 Slashing Weapon . | . . . . . . . Piercing Weapon . | . . . . . . . Special Melee Weapon 1 | . 1 . . . . . Unidentified Prototypes 2 | . . . . . 2 . Parts Lost 5 | . . . . . . 5 Power 1 | . . . . . . 1 Propulsion 3 | . . . . . . 3 Utility 1 | . . . . . . 1 Weapon . | . . . . . . . Highest Loss Streak 2 | . . . . . . 2 To Critical Strikes . | . . . . . . . Average Slot Usage (%) 65 | . 71 71 62 77 69 20 Engine 10 | . 14 14 11 11 11 2 Leg 21 | . 28 28 22 22 22 2 Device 13 | . . . 7 22 17 4 Storage 1 | . . . . . 2 4 Energy Gun 8 | . 23 14 11 11 6 . Energy Cannon 3 | . . . . . 4 4 Special Melee Weapon 6 | . 4 14 11 11 6 . Naked Turns 73 | . . . . . . 73 Heaviest Build 26 | 7 7 6 10 10 26 26 Greatest Support 20 | 20 20 20 20 20 20 20 Greatest Overweight (x) 7 | . . . . . 1 7 Average Overweight (x) . | . . . . . . . Largest Inventory Capacity 25 | 5 25 5 5 5 5 5 Average Capacity 5 | 5 5 5 5 5 5 5 Most Carried 5 | . 2 2 2 2 5 5 Average Carried 3 | . . 2 2 2 4 5 Final Capacity 5 | 5 5 5 5 5 5 5 Final Carried 5 | . 2 2 2 2 5 5 Class Distribution -------------------- 100% | Mutant Dominant Class ---------------- Mutant | -10/Materials Mutant | -10/Mines Mutant | -9/Materials Mutant | -9/Mines Mutant | -9/Exiles Mutant | -8/Mines Resources | -11 -10 -10 -9 -9 -9 -8 ----------- Run | Yrd Mat Min Mat Min Exi Min Matter Collected 325 | 207 . . 19 17 . 82 Remotely . | . . . . . . . Salvage Created 115 | . . . 19 . . 96 Parts 6 | . . . . . . 6 Haulers Intercepted . | . . . . . . . Recyclers Shooed . | . . . . . . . Parts Field Recycled . | . . . . . . . Retrieved Matter . | . . . . . . . Parts Self-Destructed . | . . . . . . . Prevented . | . . . . . . . Kills | -11 -10 -10 -9 -9 -9 -8 ------- Run | Yrd Mat Min Mat Min Exi Min Combat Hostiles Destroyed 8 | . . . . . . 8 Cannons 2 | . . . . . . 2 AOE 6 | . . . . . . 6 Classes Destroyed 4 | . . . 1 . . 3 Worker 1 | . . . . . . 1 Operator 1 | . . . 1 . . . Swarmer 7 | . . . . . . 7 Grunt 1 | . . . . . . 1 Best Kill Streak 4 | . . . 1 . . 4 Combat Bots Only 4 | . . . . . . 4 Max Kills in Single Turn 3 | . . . 1 . . 3 Gunslinging . | . . . . . . . Exploded 3 | . . . . . . 3 Melee . | . . . . . . . Uniques/NPCs Destroyed . | . . . . . . . Combat | -11 -10 -10 -9 -9 -9 -8 -------- Run | Yrd Mat Min Mat Min Exi Min Hostile Shots Fired 129 | . . . . . . 129 Missed 42 | . . . . . . 42 Damage Taken 1019 | . 20 . . . . 999 Core 400 | . . . . . . 400 Absorbed by Shields . | . . . . . . . Core Remaining (%) 100 | 100 . 100 . . . . Volleys Fired 15 | . . . 8 . . 7 Largest 1 | . . . 1 . . 1 Hottest 100 | . . . 50 . . 100 Shots Fired 15 | . . . 8 . . 7 Gun 8 | . . . 8 . . . Cannon 7 | . . . . . . 7 Launcher . | . . . . . . . Special . | . . . . . . . Kinetic . | . . . . . . . Thermal 15 | . . . 8 . . 7 Explosive . | . . . . . . . Electromagnetic . | . . . . . . . Robot Hit Streak 2 | . . . 2 . . 1 Robot Miss Streak 4 | . . . 4 . . 2 Penetration Max . | . . . . . . . Secondary Targets . | . . . . . . . Shots Hit Robots 6 | . . . 3 . . 3 Core Hits 12 | . . . 2 . . 10 Critical Kills . | . . . . . . . Critical Parts Destroyed . | . . . . . . . Critical Strikes 1 | . . . 1 . . . Burn 1 | . . . 1 . . . Melee Attacks 1 | . . . . . . 1 Impact 1 | . . . . . . 1 Slashing . | . . . . . . . Piercing . | . . . . . . . Sneak Attacks . | . . . . . . . Combat Hostiles . | . . . . . . . Follow-up Attacks . | . . . . . . . Damage Inflicted 1231 | . . . 37 . . 1194 Guns 37 | . . . 37 . . . Cannons 305 | . . . . . . 305 Explosions 841 | . . . . . . 841 Melee 37 | . . . . . . 37 Ramming 11 | . . . . . . 11 Kinetic . | . . . . . . . Thermal 1183 | . . . 37 . . 1146 Explosive . | . . . . . . . Electromagnetic . | . . . . . . . Impact 37 | . . . . . . 37 Slashing . | . . . . . . . Piercing . | . . . . . . . Highest Corruption . | . . . . . . . Average Corruption . | . . . . . . . Corruption Purged . | . . . . . . . Corruption Blocked . | . . . . . . . Overload Shots . | . . . . . . . Overflow Damage 124 | . . . . . . 124 Projectiles 4 | . . . . . . 4 Explosions 103 | . . . . . . 103 Melee 17 | . . . . . . 17 Knockbacks . | . . . . . . . Impact . | . . . . . . . Kinetic . | . . . . . . . Secondary . | . . . . . . . Self-Inflicted Damage 114 | . . . . . . 114 Shots 2 | . . . . . . 2 Rammed 1 | . . . . . . 1 Targets Rammed 1 | . . . . . . 1 Kicked . | . . . . . . . Crushed . | . . . . . . . Highest Temperature 149 | . . . 16 . . 149 Average Temperature 52 | . . . 7 . . 72 Received Heat Transfer 234 | . . . . . . 234 Siege Activations . | . . . . . . . Robots Corrupted . | . . . . . . . Combat Hostiles . | . . . . . . . Parts Fried . | . . . . . . . Impact Corruptions 1 | . . . . . . 1 Robots Melted . | . . . . . . . Combat Hostiles . | . . . . . . . Parts Melted 2 | . . . 2 . . . Heat Transferred 1385 | . . . 185 . . 1200 Parts Sabotaged . | . . . . . . . Parts Stolen . | . . . . . . . Parts Stripped . | . . . . . . . Power Chain Reactions . | . . . . . . . Alert | -11 -10 -10 -9 -9 -9 -8 ------- Run | Yrd Mat Min Mat Min Exi Min Peak Influence 323 | . 5 1 5 1 . 323 Initial 1 | . . 1 . 1 . . Average 50 | . 3 1 2 1 . 224 Maximum Alert Level 1 | . . . . . . 1 Low Security (%) 84 | 100 100 100 100 100 . 28 Level 1 15 | . . . . . . 71 Level 2 . | . . . . . . . Level 3 . | . . . . . . . Level 4 . | . . . . . . . Level 5 . | . . . . . . . High Security . | . . . . . . . Max Security . | . . . . . . . Squads Dispatched 2 | . . . 2 . . . Investigation . | . . . . . . . Extermination . | . . . . . . . Reinforcement 2 | . . . 2 . . . Assault . | . . . . . . . Garrison . | . . . . . . . Intercept . | . . . . . . . Searches Triggered . | . . . . . . . Construction Impeded . | . . . . . . . Haulers Reinforced . | . . . . . . . Active Scanning Responses . | . . . . . . . Cargo Convoy Interrupts . | . . . . . . . Stealth | -11 -10 -10 -9 -9 -9 -8 --------- Run | Yrd Mat Min Mat Min Exi Min Distress Signals 1 | . . . 1 . . . Communications Jammed . | . . . . . . . Distress Signals . | . . . . . . . Times Spotted 18 | . . . 1 . . 17 Peak Tracking Total 7 | . . . 1 . . 7 Tactical Retreats 2 | . . . . . . 2 Traps | -11 -10 -10 -9 -9 -9 -8 ------- Run | Yrd Mat Min Mat Min Exi Min Traps Triggered 1 | . 1 . . . . . Indirectly . | . . . . . . . Trap Hack Attempts . | . . . . . . . Triggered . | . . . . . . . Disarmed 1 | . 1 . . . . . Reprogrammed . | . . . . . . . Reused . | . . . . . . . Traps Extracted . | . . . . . . . Installed . | . . . . . . . Triggered . | . . . . . . . Machines | -11 -10 -10 -9 -9 -9 -8 ---------- Run | Yrd Mat Min Mat Min Exi Min Machines Disabled 1 | . . . . . . 1 Max in Single Turn 1 | . . . . . . 1 Machines Repaired . | . . . . . . . Machines Dismantled . | . . . . . . . Machines Sabotaged . | . . . . . . . Overloaded Fab Kills . | . . . . . . . Hacking | -11 -10 -10 -9 -9 -9 -8 --------- Run | Yrd Mat Min Mat Min Exi Min Machines Accessed 5 | . 2 . 1 . 2 . Terminals 2 | . 2 . . . . . Fabricators . | . . . . . . . Repair Stations . | . . . . . . . Recycling Units . | . . . . . . . Scanalyzers 1 | . . . 1 . . . Garrison Access . | . . . . . . . Total Hacks 40 | . 4 . 4 . 32 . Successful 39 | . 3 . 4 . 32 . Failed 1 | . 1 . . . . . Catastrophic 1 | . 1 . . . . . Database Lockouts . | . . . . . . . Manual 5 | . . . . . 5 . Terminals 4 | . 4 . . . . . Fabricators . | . . . . . . . Repair Stations . | . . . . . . . Recycling Units . | . . . . . . . Scanalyzers 4 | . . . 4 . . . Garrison Access . | . . . . . . . Terminal Hacks 35 | . 3 . . . 32 . Record 33 | . 1 . . . 32 . Disarm Traps 1 | . 1 . . . . . Zone Layout 1 | . 1 . . . . . Fabricator Hacks . | . . . . . . . Repair Station Hacks . | . . . . . . . Recycling Unit Hacks . | . . . . . . . Scanalyzer 4 | . . . 4 . . . Insert Component 2 | . . . 2 . . . Analyze 2 | . . . 2 . . . Garrison Access Hacks . | . . . . . . . Unauthorized Hacks . | . . . . . . . Terminals . | . . . . . . . Fabricators . | . . . . . . . Repair Stations . | . . . . . . . Recycling Units . | . . . . . . . Scanalyzers . | . . . . . . . Garrison Access . | . . . . . . . Data Cores Recovered . | . . . . . . . Used . | . . . . . . . Hacking Detections 2 | . 1 . 1 . . . Full Trace Events . | . . . . . . . Feedback Events . | . . . . . . . Feedback Blocked . | . . . . . . . Robot Schematics Acquired . | . . . . . . . Robots Built . | . . . . . . . Authchips . | . . . . . . . Time . | . . . . . . . Total Robot Build Rating . | . . . . . . . Part Schematics Acquired 2 | . . . 2 . . . Parts Built . | . . . . . . . Authchips . | . . . . . . . Time . | . . . . . . . Total Part Build Rating . | . . . . . . . Parts Repaired . | . . . . . . . Time . | . . . . . . . Parts Recycled . | . . . . . . . Recycled Matter . | . . . . . . . Retrieved Matter . | . . . . . . . Retrieved Components . | . . . . . . . Parts Scanalyzed 2 | . . . 2 . . . Part Schematics Acquired 2 | . . . 2 . . . Parts Damaged . | . . . . . . . Bothacking | -11 -10 -10 -9 -9 -9 -8 ------------ Run | Yrd Mat Min Mat Min Exi Min Used RIF Installer . | . . . . . . . Robots Hacked . | . . . . . . . Non-combat . | . . . . . . . Combat . | . . . . . . . Robot Hacks Applied . | . . . . . . . Relay Couplers Released . | . . . . . . . Fabnet Peak Effective % . | . . . . . . . Robots Rewired . | . . . . . . . Allies Hacked . | . . . . . . . Hacks Repelled . | . . . . . . . Allies | -11 -10 -10 -9 -9 -9 -8 -------- Run | Yrd Mat Min Mat Min Exi Min Total Allies . | . . . . . . . Largest Group . | . . . . . . . Highest-Rated Group . | . . . . . . . Highest-Rated Ally . | . . . . . . . Total Orders . | . . . . . . . Ally Attacks . | . . . . . . . Total Damage . | . . . . . . . Kills . | . . . . . . . Allies Corrupted . | . . . . . . . Allies Melted . | . . . . . . . Intel | -11 -10 -10 -9 -9 -9 -8 ------- Run | Yrd Mat Min Mat Min Exi Min Robot Analysis Total . | . . . . . . . Derelict Logs Recovered . | . . . . . . . Drone Launches . | . . . . . . . Drone Recoveries . | . . . . . . . Exploration | -11 -10 -10 -9 -9 -9 -8 ------------- Run | Yrd Mat Min Mat Min Exi Min Turns Passed 1737 | 87 176 41 143 117 1016 157 Spaces Moved 1334 | 69 144 35 104 98 708 176 Core 155 | 4 . . . . . 151 Treads . | . . . . . . . Legs 1164 | 65 144 35 104 98 708 10 Wheels 15 | . . . . . . 15 Hover . | . . . . . . . Flight . | . . . . . . . Fastest Speed 50 | 50 120 120 120 120 120 50 Average Speed 124 | 115 120 120 120 120 142 69 Slowest Speed 400 | 120 120 120 120 120 190 400 Overloaded Moves . | . . . . . . . Propulsion Burnouts . | . . . . . . . Robots Hopped . | . . . . . . . Cave-ins Triggered . | . . . . . . . Exploration Rate (%) 27 | 4 29 10 11 14 72 51 Regions Visited 6 Branch Regions 4 Pre-discovered Areas 1 | . . . . . 1 . Known Exits Taken . | . . . . . . . Unknown Exits Taken 6 | 1 1 1 1 1 1 . Scrap Searched 1 | . . . . 1 . . Spaces Dug . | . . . . . . . Terrain Destroyed 88 | . . . . . . 88 Melee . | . . . . . . . Projectile 4 | . . . . . . 4 AOE 84 | . . . . . . 84 Terrain Rammed . | . . . . . . . Walls Destroyed . | . . . . . . . Machines Disabled . | . . . . . . . Actions | -11 -10 -10 -9 -9 -9 -8 --------- Run | Yrd Mat Min Mat Min Exi Min Total 1371 | 73 147 34 113 97 719 188 Wait . | . . . . . . . Move 1328 | 68 143 34 103 97 707 176 Hop . | . . . . . . . Pick Up 3 | . . . . . 3 . Fast Attach 15 | 5 2 . 2 . 3 3 Attach . | . . . . . . . Detach 2 | . 2 . . . . . Swap . | . . . . . . . Drop 4 | . . . . . 4 . Fire 15 | . . . 8 . . 7 Melee 1 | . . . . . . 1 Ram 1 | . . . . . . 1 Kick . | . . . . . . . Crush . | . . . . . . . Escape Stasis . | . . . . . . . Rewire 2 | . . . . . 2 . Trap . | . . . . . . . Miscellaneous . | . . . . . . . Route ------- -11/Scrapyard -10/Materials -10/Mines -9/Materials -9/Mines -9/Exiles (discovered 2 exits: [*Min x2]) -8/Mines History --------- Turn | Location | Event 30 | -11/Scrapyard | Discovered new exit (range 15) 88 | -11/Scrapyard | Entered Materials 230 | -10/Materials | Discovered new exit (range 16) 264 | -10/Materials | Entered Mines 290 | -10/Mines | Discovered new exit (range 9) 305 | -10/Mines | Entered Materials 305 | -9/Materials | Evolved 2 slots: Power x1, Propulsion x1 310 | -9/Materials | Build established: Mutant 440 | -9/Materials | Discovered new exit (range 6) 448 | -9/Materials | Entered Mines 451 | -9/Mines | Met a Derelict bent on vengeance 520 | -9/Mines | Assembled infested the area 556 | -9/Mines | Deemed a non-threat by the Exiles lab entrance 558 | -9/Mines | Discovered new exit (range 5) 565 | -9/Mines | Entered Exiles 601 | -9/Exiles | Discovered new exit (range 15) 618 | -9/Exiles | Met 8R-AWN 645 | -9/Exiles | Met EX-HEX 747 | -9/Exiles | Met EX-DEC 778 | -9/Exiles | Learned location of Zion (-6) 887 | -9/Exiles | Discovered new exit (range 10) 999 | -9/Exiles | Met EX-BIN 1022 | -9/Exiles | Aligned with FarCom system 1023 | -9/Exiles | Given EX-Vault access code 1128 | -9/Exiles | Opened EX-Vault 1151 | -9/Exiles | Found Prototype Device 1151 | -9/Exiles | Identified Skeleton Box 1156 | -9/Exiles | Found Prototype Energy Cannon 1156 | -9/Exiles | Identified YOLO Cannon 1214 | -9/Exiles | Warned to stay clear of 0b10 Research branches 1581 | -9/Exiles | Stole two prototypes: YOLO Cannon, Skeleton Box 1581 | -9/Exiles | Entered Mines 1645 | -8/Mines | Released all parts (3) 1654 | -8/Mines | Core integrity fell below 50% 1720 | -8/Mines | Core integrity fell below 20% 1738 | -8/Mines | Destroyed by S-10 Pest with Light Assault Rifle Last Messages --------------- 01627_ Aluminum Leg destroyed. 01628_ Lgt. Ion Engine destroyed. 01645_ Released Lrg. Battery. 01645_ Released YOLO Cannon. 01645_ Released Skeleton Box. 01647_ Critical hit (Burn: +37). 01648_ U-05 Engineer lays Concrete. 01715_ K-01 Serf collects debris. 01716_ Slammed into K-01 Serf. 01716_ K-01 Serf destroyed. 01717_ Acquired 25 matter. 01718_ Acquired Wheel. 01721_ Acquired Reaction Control System. 01724_ Acquired 52 matter. 01725_ Reaction Control System destroyed. 01733_ Acquired Hvy. Mace. 01733_ Wheel destroyed. 01737_ Destroyed Flight Unit. 01737_ S-10 Pest system corrupted by crushing effect. Map ----- +----------------------------------------------------+ | ??????????????????#####?## ##?????? # | | ?????????????????## #### ######?? # | | ?????????????????# #??? # | | ????????????????## #### #????? | | ????????????????# ## ##?????????? | | ????????????????# ## #??????????? | | ????????????????## ### #??????????? | | ?????????????????# ###?# #??????????? | | ?????????????????#g###???# #??????????? | | ?????????????????# #?????# ??????????? | | ???????????????### #????? ??????????? | | ???????????????# #????? ??????????? | | ???????????????#l###????? ??????????? | | ???????????????# #??????? ??????????? | | ???????????????# #??????? ??????????? | | ???????????????# #??????? ??????????? | | ???????????????# #??????? #??????????? | | ??? ???????????# #??????? ???????????? | | ???"" ######### #??????? ???????????? | | ???"" t ##???????????????????? | | ???"" t #???????????????????? | | ?# ### ##% #???????????????????? | | ?????????#??#s ##???????????????????? | | ?????????# ## s ##????????????????????? | | ?????????# ##?????????????????????? | | ?????????####s@##?????????????????????? | | ????????????# s##????????????????????? | | ????????????# #????????????????????? | | ????????????# ##???????????????????? | | ????????????## *!#???????????????????? | | ?????????????## ##???????????????????? | | ??????????????####????????????????????? | | ??????????????????????????????????????? | | ??????????????????????????????????????? | | | | | | | | | | | | | | | | | | | | | | | | | | | | | | | | | +----------------------------------------------------+ Best States ------------- Heat Dissipation 50 Energy Generation 10 Energy Capacity 325 Matter Stores 300 Matter Capacity 300 Sight Range 16 Terrain Scan Density 10 Evasion (%) 55 Item Schematics ----------------- Huge Storage Unit | -9/Materials | Scanalyzed Med. Laser | -9/Materials | Scanalyzed Robot Schematics ------------------ None Fabricated ------------ Nothing Alien Tech Used ----------------- None Achievements -------------- Librarian Challenges ------------ None Game ------ Seed RestorationFrostShield Manual? 0 Play Time 00:18:48 Cumulative 3.7 hours Start 2024.04.01 @ 02:23:20 End 2024.04.01 @ 02:40:06 Sessions 1 Manual Loads 0 Difficulty Rogue Special Mode None Game No. 6 Rogue 4 Adventurer 2 Explorer 0 Win Type - Total 0 Types 0/0/0/0/0/0/0/0/0 Lore% 9 Gallery% 10 Achievement% 10 Wizard Run 0 Options --------- Layout 1 ASCII 0 Keyboard 1 Movement Arrows Keybinds 0 Fullscreen 2 Font 24/Swanston Map View 50x35 Zoom Use 0% Tactical HUD 1 Map Filters NONE Filters NONE Steam 1 RUN: 25248be4-a48e-40ad-88a9-3b9a7bbda057